[Event "2nd Late Dr Abul K C Chess-ch B 2022"]
[Site "Dhaka"]
[Date "2022.07.08"]
[Round "9.2"]
[White "Sakline Mostafa, Sajid"]
[Black "Rahman, Saimon Siddiqur"]
[Result "1/2-1/2"]
[ECO "D12"]
[WhiteElo "1979"]
[BlackElo "1983"]
[Annotator "RC"]
[PlyCount "106"]
[EventDate "2022.07.03"]
[EventCountry "BAN"]
[SourceTitle "playchess.com"]
[Source "ChessBase"]
[SourceQuality "1"]
[TimeControl "5400+30"]

1. d4 {[%emt 0:00:02]} d5 {[%emt 0:00:08]} 2. c4 {[%emt 0:00:00]} c6 {[%emt 0:00:25]} 3. Nc3 {[%emt 0:00:01]} Nf6 {[%emt 0:00:18]} 4. e3 {[%emt 0:00:01]} Bf5 {[%emt 0:02:39]} 5. Qb3 {[%emt 0:01:05]} Qb6 6. Nf3 {[%emt 0:03:44]} e6 {[%emt 0:02:23]} 7. Qxb6 {[%emt 0:05:24]} axb6 {[%emt 0:00:08]} 8. Nh4 {[%emt 0:00:19]} Bg6 {[%emt 0:00:11]} 9. Nxg6 {[%emt 0:02:35]} hxg6 {[%emt 0:00:03]} 10. h3 {[%emt 0:00:02]} Bb4 {[%emt 0:07:50]} 11. Bd2 {[%emt 0:01:08]} Nbd7 {[%emt 0:09:30]} 12. cxd5 {[%emt 0:06:38]} exd5 {[%emt 0:00:40]} 13. Be2 {[%emt 0:01:54]} b5 {[%emt 0:02:55]} 14. O-O {[%emt 0:03:29]} Nb6 {[%emt 0:02:19]} 15. a3 {[%emt 0:09:30]} Bd6 {[%emt 0:00:58]} 16. f3 {[%emt 0:07:09]} O-O {[%emt 0:03:05]} 17. e4 {[%emt 0:03:34]} b4 {[%emt 0:01:49]} 18. axb4 {[%emt 0:04:34]} Bxb4 {[%emt 0:00:02]} 19. e5 {[%emt 0:02:27]} Nfd7 {[%emt 0:00:12]} 20. f4 {[%emt 0:06:35]} Nc4 21. Bxc4 {[%emt 0:01:14]} dxc4 {[%emt 0:07:38]} 22. g4 {[%emt 0:02:48]} Bxc3 {[%emt 0:04:28]} 23. bxc3 {[%emt 0:01:02]} b5 {[%emt 0:00:11]} 24. f5 {[%emt 0:01:26]} gxf5 {[%emt 0:00:28]} 25. gxf5 {[%emt 0:00:23]} Nb6 {[%emt 0:00:05]} 26. f6 {[%emt 0:01:55]} Rxa1 {[%emt 0:00:38]} 27. Rxa1 {[%emt 0:00:38]} Ra8 {[%emt 0:00:02]} 28. Rf1 {[%emt 0:05:38]} Ra2 {[%emt 0:01:05]} 29. Rf2 {[%emt 0:07:08]} gxf6 {[%emt 0:04:30]} 30. exf6 {[%emt 0:01:42]} Nd5 {[%emt 0:00:38]} 31. h4 {[%emt 0:03:00]} Rc2 {[%emt 0:00:43]} 32. Be1 {[%emt 0:09:06]} Rc1 {[%emt 0:02:41]} 33. Kf1 {[%emt 0:00:01]} Nxc3 {[%emt 0:00:04]} 34. Rg2+ {[%emt 0:00:13]} Kf8 {[%emt 0:00:13]} 35. h5 {[%emt 0:07:19]} Nd5 {[%emt 0:01:24]} 36. h6 {[%emt 0:01:29]} Nxf6 {[%emt 0:00:55]} 37. Rg3 {[%emt 0:00:01]} c3 {[%emt 0:09:12]} 38. Rxc3 {[%emt 0:02:01]} Rxc3 {[%emt 0:00:01]} 39. Bxc3 {[%emt 0:00:01]} Nd5 {[%emt 0:00:06]} 40. Bd2 {[%emt 0:00:11]} Kg8 {[%emt 0:00:02]} 41. Ke2 {[%emt 0:00:08]} Kh7 {[%emt 0:00:01]} 42. Kd3 {[%emt 0:00:26]} f5 {[%emt 0:00:01]} 43. Ke2 {[%emt 0:00:19]} Kg6 {[%emt 0:08:57]} 44. Kf3 {[%emt 0:00:54]} b4 {[%emt 0:01:33]} 45. Ke2 {[%emt 0:01:33]} f4 {[%emt 0:00:50]} 46. Kf3 {[%emt 0:01:47]} Kxh6 {[%emt 0:01:11]} 47. Bxb4 {[%emt 0:00:35]} Nxb4 {[%emt 0:03:53]} 48. Kxf4 {[%emt 0:00:01]} Kg6 {[%emt 0:27:25]} 49. Ke5 {[%emt 0:00:16]} Kf7 {[%emt 0:00:00]} 50. Kd6 {[%emt 0:02:04]} Kg6 {[%emt 0:01:00]} 51. Ke5 Kh6 {[%emt 0:00:30]} 52. Kf4 Kg6 {[%emt 0:00:30]} 53. Ke4 {[%emt 0:01:30]} Kg5 1/2-1/2

[Event "2nd Late Dr Abul K C Chess-ch B 2022"]
[Site "Dhaka"]
[Date "2022.07.08"]
[Round "9.3"]
[White "Ahmed, Feroz"]
[Black "Abdullah Al, Raison"]
[Result "1-0"]
[ECO "A20"]
[WhiteElo "1976"]
[BlackElo "1888"]
[Annotator "RC"]
[PlyCount "69"]
[EventDate "2022.07.03"]
[EventCountry "BAN"]
[SourceTitle "playchess.com"]
[Source "ChessBase"]
[SourceQuality "1"]
[TimeControl "5400+30"]

1. c4 {[%emt 0:00:03]} e5 {[%emt 0:00:22]} 2. Nf3 {[%emt 0:00:05]} e4 {[%emt 0:00:12]} 3. Nd4 {[%emt 0:00:07]} Nc6 4. Nc2 {[%emt 0:00:25]} d5 {[%emt 0:00:36]} 5. cxd5 {[%emt 0:01:07]} Qxd5 {[%emt 0:00:02]} 6. Nc3 {[%emt 0:00:13]} Qe5 {[%emt 0:00:11]} 7. d4 {[%emt 0:00:45]} exd3 {[%emt 0:01:21]} 8. Qxd3 {[%emt 0:00:04]} Nf6 {[%emt 0:11:54]} 9. e4 {[%emt 0:04:26]} Nb4 {[%emt 0:09:11]} 10. Qe2 {[%emt 0:00:40]} Bc5 {[%emt 0:08:53]} 11. f4 {[%emt 0:12:14]} Qe7 {[%emt 0:03:13]} 12. e5 {[%emt 0:01:10]} Ng4 {[%emt 0:12:52]} 13. Nxb4 {[%emt 0:03:33]} Bxb4 {[%emt 0:01:33]} 14. Bd2 {[%emt 0:00:52]} Qc5 {[%emt 0:09:39]} 15. h3 {[%emt 0:08:12]} Nh6 {[%emt 0:02:20]} 16. Rc1 {[%emt 0:01:56]} Qe7 {[%emt 0:00:35]} 17. Nd5 {[%emt 0:01:58]} Bxd2+ {[%emt 0:01:02]} 18. Qxd2 {[%emt 0:00:55]} Qh4+ {[%emt 0:00:08]} 19. Qf2 {[%emt 0:00:31]} Qxf2+ {[%emt 0:00:43]} 20. Kxf2 {[%emt 0:00:03]} O-O {[%emt 0:00:22]} 21. Nxc7 {[%emt 0:04:29]} Rb8 {[%emt 0:00:01]} 22. Bc4 {[%emt 0:00:19]} Nf5 {[%emt 0:02:26]} 23. g4 {[%emt 0:00:33]} Nd4 {[%emt 0:00:09]} 24. Rhd1 {[%emt 0:00:49]} Nc6 {[%emt 0:00:48]} 25. a3 {[%emt 0:03:04]} h5 {[%emt 0:00:52]} 26. Kg3 {[%emt 0:00:34]} hxg4 {[%emt 0:01:00]} 27. hxg4 {[%emt 0:00:03]} g5 {[%emt 0:00:14]} 28. Rd6 {[%emt 0:05:30]} Kg7 {[%emt 0:00:22]} 29. Rh1 {[%emt 0:00:27]} gxf4+ {[%emt 0:00:54]} 30. Kxf4 {[%emt 0:00:06]} Rd8 {[%emt 0:05:22]} 31. Rxd8 {[%emt 0:09:54]} Nxd8 {[%emt 0:28:43]} 32. Ne8+ {[%emt 0:00:59]} Kf8 {[%emt 0:00:00]} 33. Nf6 {[%emt 0:00:27]} Be6 {[%emt 0:00:00]} 34. Rh8+ {[%emt 0:00:37]} Ke7 {[%emt 0:01:30]} 35. Re8# {[%emt 0:00:13]} 1-0

[Event "2nd Late Dr Abul K C Chess-ch B 2022"]
[Site "Dhaka"]
[Date "2022.07.08"]
[Round "9.4"]
[White "Dewan, Riad"]
[Black "Mahin, Ahmed Shuvo"]
[Result "1-0"]
[ECO "E05"]
[WhiteElo "1970"]
[BlackElo "1807"]
[Annotator "RC"]
[PlyCount "51"]
[EventDate "2022.07.03"]
[EventCountry "BAN"]
[SourceTitle "playchess.com"]
[Source "ChessBase"]
[SourceQuality "1"]
[TimeControl "5400+30"]

1. d4 {[%emt 0:00:06]} Nf6 {[%emt 0:00:08]} 2. Nf3 {[%emt 0:00:06]} d5 {[%emt 0:00:05]} 3. c4 {[%emt 0:00:20]} e6 {[%emt 0:00:04]} 4. g3 {[%emt 0:00:13]} Be7 {[%emt 0:00:05]} 5. Bg2 {[%emt 0:00:10]} O-O {[%emt 0:00:05]} 6. O-O {[%emt 0:00:23]} dxc4 {[%emt 0:00:05]} 7. Nbd2 {[%emt 0:04:54]} b5 {[%emt 0:00:05]} 8. a4 {[%emt 0:00:22]} c6 {[%emt 0:00:04]} 9. Ne5 {[%emt 0:00:16]} Nd5 10. Ne4 {[%emt 0:07:07]} Bb7 {[%emt 0:02:22]} 11. Bf4 {[%emt 0:07:54]} Nd7 12. Nxd7 {[%emt 0:02:16]} Qxd7 {[%emt 0:10:37]} 13. Nc5 {[%emt 0:00:36]} Qc8 {[%emt 0:00:44]} 14. Qd2 {[%emt 0:17:03]} a6 {[%emt 0:05:38]} 15. Bg5 {[%emt 0:04:13]} Qc7 {[%emt 0:10:22]} 16. Bxe7 {[%emt 0:00:23]} Qxe7 {[%emt 0:02:39]} 17. e4 {[%emt 0:02:01]} Nf6 {[%emt 0:00:22]} 18. e5 {[%emt 0:00:10]} Nd7 {[%emt 0:03:06]} 19. Nxb7 {[%emt 0:00:21]} Nxe5 {[%emt 0:01:59]} 20. dxe5 {[%emt 0:01:04]} Qxb7 {[%emt 0:00:06]} 21. axb5 {[%emt 0:00:27]} Qxb5 {[%emt 0:00:39]} 22. Qc3 {[%emt 0:01:51]} Rab8 {[%emt 0:01:15]} 23. Rfc1 {[%emt 0:01:09]} Rfd8 {[%emt 0:01:48]} 24. Rd1 {[%emt 0:01:17]} Rd5 {[%emt 0:02:39]} 25. Bxd5 {[%emt 0:04:29]} cxd5 {[%emt 0:00:02]} 26. Rd2 {[%emt 0:02:55]} 1-0